[Event "*** Titled Tuesday Blitz"]
[Site "Chess.com"]
[Date "2020.05.19"]
[Round "6"]
[White "GukeshDommaraju"]
[Black "BulletMercenary"]
[Result "1-0"]
[WhiteElo "2674"]
[BlackElo "2120"]
[TimeControl "180+1"]
[EndTime "13:08:08 PDT"]
[Termination "GukeshDommaraju won on time"]

1. e4 {[%clk 0:03:00.9]} 1... e6 {[%clk 0:02:59.5]} 2. d4 {[%clk 0:03:00.2]}
2... d5 {[%clk 0:02:59.5]} 3. Nc3 {[%clk 0:03:00.6]} 3... Bb4 {[%clk 0:02:59.1]}
4. e5 {[%clk 0:03:00.4]} 4... c5 {[%clk 0:02:59.1]} 5. a3 {[%clk 0:03:00.7]}
5... cxd4 {[%clk 0:02:58.9]} 6. axb4 {[%clk 0:02:59.8]} 6... dxc3 {[%clk
0:02:59.2]} 7. bxc3 {[%clk 0:03:00.3]} 7... Qc7 {[%clk 0:02:58.7]} 8. Nf3 {[%clk
0:02:54.6]} 8... Nd7 {[%clk 0:02:58]} 9. Qd4 {[%clk 0:02:51.3]} 9... Ne7 {[%clk
0:02:57.7]} 10. Bb5 {[%clk 0:02:48.6]} 10... O-O {[%clk 0:02:44.9]} 11. Bxd7
{[%clk 0:02:30.6]} 11... Bxd7 {[%clk 0:02:44.6]} 12. O-O {[%clk 0:02:30.3]}
12... Bb5 {[%clk 0:02:24.8]} 13. Re1 {[%clk 0:02:28]} 13... Nf5 {[%clk
0:02:21.1]} 14. Qd2 {[%clk 0:02:21.5]} 14... Rfc8 {[%clk 0:02:16.9]} 15. Bb2
{[%clk 0:02:21.3]} 15... Qc4 {[%clk 0:02:07.2]} 16. Rac1 {[%clk 0:02:08.6]}
16... a5 {[%clk 0:01:48.7]} 17. h3 {[%clk 0:02:05.2]} 17... a4 {[%clk
0:01:46.8]} 18. g4 {[%clk 0:02:02.5]} 18... a3 {[%clk 0:01:28.1]} 19. Ba1 {[%clk
0:02:01.6]} 19... Ne7 {[%clk 0:01:26.6]} 20. Nd4 {[%clk 0:02:01.4]} 20... Nc6
{[%clk 0:01:21.5]} 21. Nb3 {[%clk 0:02:00.7]} 21... Ba4 {[%clk 0:01:07.3]} 22.
Nc5 {[%clk 0:01:59.6]} 22... b6 {[%clk 0:01:04.8]} 23. Nd3 {[%clk 0:01:57.4]}
23... Bb5 {[%clk 0:01:01.3]} 24. f4 {[%clk 0:01:56.8]} 24... Rd8 {[%clk
0:00:51.5]} 25. f5 {[%clk 0:01:54.1]} 25... d4 {[%clk 0:00:47.4]} 26. f6 {[%clk
0:01:53.1]} 26... dxc3 {[%clk 0:00:17]} 27. Qg5 {[%clk 0:01:50.8]} 27... Qd4+
{[%clk 0:00:17.3]} 28. Kh2 {[%clk 0:01:47.8]} 28... Kf8 {[%clk 0:00:04.6]} 29.
Qxg7+ {[%clk 0:01:46.5]} 29... Ke8 {[%clk 0:00:05.1]} 30. Qg8+ {[%clk
0:01:46.4]} 30... Kd7 {[%clk 0:00:05.7]} 31. Qxf7+ {[%clk 0:01:46.7]} 31... Kc8
{[%clk 0:00:06.2]} 32. Qxe6+ {[%clk 0:01:46.9]} 32... Kb7 {[%clk 0:00:06.7]} 33.
Qf5 {[%clk 0:01:44.3]} 33... Bxd3 {[%clk 0:00:05.1]} 34. cxd3 {[%clk 0:01:44]}
34... Nxb4 {[%clk 0:00:05.3]} 35. e6 {[%clk 0:01:41.2]} 35... Nxd3 {[%clk
0:00:04.3]} 36. e7 {[%clk 0:01:41.4]} 36... Re8 {[%clk 0:00:02.9]} 37. f7 {[%clk
0:01:38.7]} 37... Nxe1 {[%clk 0:00:02.6]} 38. Bxc3 {[%clk 0:01:29.1]} 38... Qd6+
{[%clk 0:00:01.3]} 39. Kg1 {[%clk 0:01:25]} 1-0

[Event "*** Titled Tuesday Blitz"]
[Site "Chess.com"]
[Date "2020.05.19"]
[Round "6"]
[White "Jospem"]
[Black "SamuelGhimpu2003"]
[Result "1-0"]
[WhiteElo "2817"]
[BlackElo "2597"]
[TimeControl "180+1"]
[EndTime "13:08:09 PDT"]
[Termination "Jospem won by resignation"]

1. Nf3 {[%clk 0:03:00.9]} 1... Nf6 {[%clk 0:02:59.6]} 2. c4 {[%clk 0:03:01]}
2... g6 {[%clk 0:02:59.9]} 3. g3 {[%clk 0:03:01.4]} 3... Bg7 {[%clk 0:03:00.8]}
4. Bg2 {[%clk 0:03:02]} 4... c6 {[%clk 0:03:01.6]} 5. O-O {[%clk 0:03:02.6]}
5... d5 {[%clk 0:03:02.5]} 6. b3 {[%clk 0:03:03.2]} 6... O-O {[%clk 0:02:57.1]}
7. Bb2 {[%clk 0:03:02.8]} 7... Bf5 {[%clk 0:02:54.2]} 8. d3 {[%clk 0:03:01.5]}
8... Nbd7 {[%clk 0:02:48.5]} 9. Nbd2 {[%clk 0:03:00.8]} 9... Re8 {[%clk
0:02:48.1]} 10. Qc2 {[%clk 0:02:50.8]} 10... e5 {[%clk 0:02:43.9]} 11. e4 {[%clk
0:02:51]} 11... dxe4 {[%clk 0:02:44.8]} 12. dxe4 {[%clk 0:02:51.9]} 12... Bg4
{[%clk 0:02:30.6]} 13. b4 {[%clk 0:02:35.3]} 13... h6 {[%clk 0:02:18.6]} 14. h3
{[%clk 0:02:33.1]} 14... Be6 {[%clk 0:02:15.1]} 15. Rfd1 {[%clk 0:02:23.2]}
15... Qc7 {[%clk 0:02:13.1]} 16. a3 {[%clk 0:02:21.4]} 16... a5 {[%clk
0:02:10.9]} 17. Bc3 {[%clk 0:02:20.1]} 17... axb4 {[%clk 0:01:59.1]} 18. axb4
{[%clk 0:02:21]} 18... Nh5 {[%clk 0:01:35]} 19. Bf1 {[%clk 0:01:57.5]} 19... c5
{[%clk 0:01:29.2]} 20. b5 {[%clk 0:01:53.4]} 20... f5 {[%clk 0:01:01.5]} 21. Nh4
{[%clk 0:01:42.3]} 21... f4 {[%clk 0:00:54.4]} 22. g4 {[%clk 0:01:41]} 22...
Nhf6 {[%clk 0:00:54.1]} 23. Nxg6 {[%clk 0:01:38.3]} 23... h5 {[%clk 0:00:51.8]}
24. g5 {[%clk 0:01:31.1]} 24... Nh7 {[%clk 0:00:50.6]} 25. Nf3 {[%clk
0:01:31.1]} 25... Bf7 {[%clk 0:00:47.2]} 26. Rxa8 {[%clk 0:01:28.5]} 26... Rxa8
{[%clk 0:00:45.9]} 27. Ne7+ {[%clk 0:01:24.2]} 27... Kf8 {[%clk 0:00:46.3]} 28.
Nd5 {[%clk 0:01:23.4]} 28... Qd8 {[%clk 0:00:42.4]} 29. h4 {[%clk 0:01:23.9]}
29... Be6 {[%clk 0:00:35.5]} 30. Be2 {[%clk 0:01:24]} 30... Kf7 {[%clk 0:00:34]}
31. Qb2 {[%clk 0:01:20.1]} 31... Qb8 {[%clk 0:00:29.9]} 32. b6 {[%clk
0:01:19.5]} 32... Bxd5 {[%clk 0:00:17.3]} 33. cxd5 {[%clk 0:01:19.9]} 33... Nhf8
{[%clk 0:00:16.5]} 34. d6 {[%clk 0:01:19.2]} 34... Ng6 {[%clk 0:00:16.7]} 35.
Qb3+ {[%clk 0:01:17.4]} 35... Kf8 {[%clk 0:00:16.3]} 36. Bb5 {[%clk 0:01:11.5]}
36... Qd8 {[%clk 0:00:15.3]} 37. Qe6 {[%clk 0:01:10.3]} 37... Nxb6 {[%clk
0:00:13.1]} 38. Qxg6 {[%clk 0:01:09.2]} 1-0

[Event "*** Titled Tuesday Blitz"]
[Site "Chess.com"]
[Date "2020.05.19"]
[Round "6"]
[White "DenishevM"]
[Black "GadimbayliA"]
[Result "0-1"]
[WhiteElo "2536"]
[BlackElo "2828"]
[TimeControl "180+1"]
[EndTime "13:08:10 PDT"]
[Termination "GadimbayliA won on time"]

1. Nf3 {[%clk 0:03:00.9]} 1... d5 {[%clk 0:02:59.4]} 2. g3 {[%clk 0:02:59.4]}
2... Nc6 {[%clk 0:02:59.4]} 3. d4 {[%clk 0:02:57.7]} 3... Bg4 {[%clk 0:03:00]}
4. Bg2 {[%clk 0:02:57.2]} 4... Qd7 {[%clk 0:02:59.1]} 5. h3 {[%clk 0:02:55.5]}
5... Bxf3 {[%clk 0:02:59.2]} 6. Bxf3 {[%clk 0:02:54.1]} 6... O-O-O {[%clk
0:02:59.8]} 7. Bg2 {[%clk 0:02:47.2]} 7... f6 {[%clk 0:02:58]} 8. O-O {[%clk
0:02:46.2]} 8... g5 {[%clk 0:02:58.1]} 9. c3 {[%clk 0:02:21.1]} 9... h5 {[%clk
0:02:54.7]} 10. Nd2 {[%clk 0:02:16.9]} 10... e6 {[%clk 0:02:52.6]} 11. e4 {[%clk
0:02:14.8]} 11... Nh6 {[%clk 0:02:50.7]} 12. exd5 {[%clk 0:02:12.6]} 12... exd5
{[%clk 0:02:51.6]} 13. b4 {[%clk 0:02:06]} 13... Bd6 {[%clk 0:02:49.5]} 14. Nb3
{[%clk 0:02:04.9]} 14... Rdg8 {[%clk 0:02:36.1]} 15. Re1 {[%clk 0:01:55.7]}
15... Ne7 {[%clk 0:02:30.8]} 16. Nc5 {[%clk 0:01:51.1]} 16... Bxc5 {[%clk
0:02:29.3]} 17. bxc5 {[%clk 0:01:50.7]} 17... f5 {[%clk 0:02:28.6]} 18. Rb1
{[%clk 0:01:41.2]} 18... h4 {[%clk 0:02:24.5]} 19. gxh4 {[%clk 0:01:06.6]} 19...
gxh4 {[%clk 0:02:25.4]} 20. Bf4 {[%clk 0:00:47.9]} 20... Ng6 {[%clk 0:02:09.2]}
21. Bg5 {[%clk 0:00:25.9]} 21... Ne5 {[%clk 0:01:42.1]} 22. Bxh6 {[%clk
0:00:24.5]} 22... Rxh6 {[%clk 0:01:35.8]} 23. Rxe5 {[%clk 0:00:22.1]} 23... Rhg6
{[%clk 0:01:35.7]} 24. Qf3 {[%clk 0:00:15.9]} 24... Qg7 {[%clk 0:01:24.4]} 25.
Kf1 {[%clk 0:00:06.5]} 25... Rxg2 {[%clk 0:01:22.5]} 26. Qxf5+ {[%clk
0:00:07.1]} 26... Kb8 {[%clk 0:01:20.8]} 27. Ke2 {[%clk 0:00:07.5]} 27... Rf8
{[%clk 0:01:19.5]} 28. c6 {[%clk 0:00:03.7]} 28... b6 {[%clk 0:00:59.7]} 0-1

[Event "*** Titled Tuesday Blitz"]
[Site "Chess.com"]
[Date "2020.05.19"]
[Round "6"]
[White "Bigfish1995"]
[Black "StephenDedalus83"]
[Result "1-0"]
[WhiteElo "2996"]
[BlackElo "2764"]
[TimeControl "180+1"]
[EndTime "13:08:11 PDT"]
[Termination "Bigfish1995 won by resignation"]

1. d4 {[%clk 0:02:38]} 1... g6 {[%clk 0:02:58.7]} 2. e4 {[%clk 0:02:35.6]} 2...
Bg7 {[%clk 0:02:58.6]} 3. Nf3 {[%clk 0:02:35.5]} 3... d6 {[%clk 0:02:58.3]} 4.
h3 {[%clk 0:02:35.6]} 4... Nd7 {[%clk 0:02:46.2]} 5. Nc3 {[%clk 0:02:31.8]} 5...
a6 {[%clk 0:02:43.4]} 6. a4 {[%clk 0:02:30.6]} 6... b6 {[%clk 0:02:39.9]} 7. Bc4
{[%clk 0:02:27.4]} 7... e6 {[%clk 0:02:39.2]} 8. Qe2 {[%clk 0:02:26.9]} 8... Bb7
{[%clk 0:02:38.8]} 9. Bg5 {[%clk 0:02:14.2]} 9... Ne7 {[%clk 0:02:36.1]} 10. h4
{[%clk 0:02:08.5]} 10... h6 {[%clk 0:02:34.8]} 11. Be3 {[%clk 0:02:05.9]} 11...
c5 {[%clk 0:02:31.9]} 12. h5 {[%clk 0:01:57]} 12... g5 {[%clk 0:02:30.9]} 13.
O-O-O {[%clk 0:01:48.2]} 13... Qc7 {[%clk 0:02:25.8]} 14. d5 {[%clk 0:01:45]}
14... e5 {[%clk 0:02:19.1]} 15. g4 {[%clk 0:01:42.6]} 15... Nf6 {[%clk
0:02:01.9]} 16. Nh2 {[%clk 0:01:42.1]} 16... Bc8 {[%clk 0:02:00.7]} 17. Kd2
{[%clk 0:01:38.5]} 17... Qb7 {[%clk 0:01:57.4]} 18. Ra1 {[%clk 0:01:36.3]} 18...
Bd7 {[%clk 0:01:56.7]} 19. Rhb1 {[%clk 0:01:35.9]} 19... O-O {[%clk 0:01:51.1]}
20. b4 {[%clk 0:01:34.6]} 20... Qc8 {[%clk 0:01:50.9]} 21. bxc5 {[%clk
0:01:27.9]} 21... bxc5 {[%clk 0:01:50.2]} 22. f3 {[%clk 0:01:28]} 22... Ne8
{[%clk 0:01:41.2]} 23. a5 {[%clk 0:01:22.9]} 23... Bf6 {[%clk 0:01:36.8]} 24.
Rb6 {[%clk 0:01:21.3]} 24... Qc7 {[%clk 0:01:35.5]} 25. Bxa6 {[%clk 0:01:18.6]}
25... Nc8 {[%clk 0:01:34.5]} 26. Rb7 {[%clk 0:01:18.1]} 26... Qd8 {[%clk
0:01:34.1]} 27. Bb5 {[%clk 0:01:17.5]} 27... Bxb5 {[%clk 0:01:32.5]} 28. Qxb5
{[%clk 0:01:17.3]} 28... Ra7 {[%clk 0:01:22.9]} 29. Rxa7 {[%clk 0:01:08.6]}
29... Nxa7 {[%clk 0:01:22.2]} 30. Qb7 {[%clk 0:01:09.1]} 30... Qc7 {[%clk
0:01:18.3]} 31. a6 {[%clk 0:01:08.3]} 31... Bd8 {[%clk 0:01:17.8]} 32. Nf1
{[%clk 0:01:02]} 32... f6 {[%clk 0:01:16.8]} 33. Ng3 {[%clk 0:00:56.7]} 33...
Rf7 {[%clk 0:01:15.7]} 34. Qxc7 {[%clk 0:00:44.7]} 34... Bxc7 {[%clk 0:01:15.5]}
35. Nf5 {[%clk 0:00:44.7]} 35... Kh7 {[%clk 0:01:15.1]} 36. Kd3 {[%clk
0:00:44.4]} 36... Ng7 {[%clk 0:01:09.9]} 37. Rb1 {[%clk 0:00:42.3]} 37... Nxf5
{[%clk 0:01:08.5]} 38. exf5 {[%clk 0:00:42.5]} 38... Ba5 {[%clk 0:01:08.3]} 39.
Ne4 {[%clk 0:00:42.3]} 39... Kg7 {[%clk 0:00:57.5]} 40. Nxd6 {[%clk 0:00:38.1]}
40... Rd7 {[%clk 0:00:57.2]} 41. Rb7 {[%clk 0:00:37.9]} 1-0

[Event "*** Titled Tuesday Blitz"]
[Site "Chess.com"]
[Date "2020.05.19"]
[Round "6"]
[White "BlackBoarder"]
[Black "adricalderon8"]
[Result "1/2-1/2"]
[WhiteElo "2598"]
[BlackElo "2436"]
[TimeControl "180+1"]
[EndTime "13:08:11 PDT"]
[Termination "Game drawn by repetition"]

1. e4 {[%clk 0:03:00.1]} 1... c5 {[%clk 0:02:59.3]} 2. Nf3 {[%clk 0:03:00]} 2...
Nc6 {[%clk 0:02:59.5]} 3. Bb5 {[%clk 0:02:59.4]} 3... g6 {[%clk 0:02:58.9]} 4.
Bxc6 {[%clk 0:02:58.3]} 4... dxc6 {[%clk 0:02:59.8]} 5. d3 {[%clk 0:02:56]} 5...
Bg7 {[%clk 0:02:59.9]} 6. Nc3 {[%clk 0:02:54.7]} 6... Nf6 {[%clk 0:02:59]} 7.
Be3 {[%clk 0:02:52.4]} 7... Nd7 {[%clk 0:02:59.3]} 8. Qd2 {[%clk 0:02:50.8]}
8... h6 {[%clk 0:02:59.9]} 9. O-O {[%clk 0:02:16.2]} 9... b6 {[%clk 0:02:58.6]}
10. a4 {[%clk 0:02:10.3]} 10... a5 {[%clk 0:02:57.4]} 11. Rae1 {[%clk
0:02:06.5]} 11... e5 {[%clk 0:02:56]} 12. h3 {[%clk 0:02:00.2]} 12... Nf8 {[%clk
0:02:54.3]} 13. Nh2 {[%clk 0:01:35.7]} 13... Ne6 {[%clk 0:02:53.1]} 14. Ne2
{[%clk 0:01:35.5]} 14... g5 {[%clk 0:02:45.6]} 15. Ng3 {[%clk 0:01:33.3]} 15...
Nf4 {[%clk 0:02:34.5]} 16. Nf5 {[%clk 0:01:27.5]} 16... Bxf5 {[%clk 0:02:32.3]}
17. exf5 {[%clk 0:01:27.1]} 17... O-O {[%clk 0:02:18.5]} 18. g3 {[%clk
0:01:09.2]} 18... Nd5 {[%clk 0:02:08.7]} 19. Qe2 {[%clk 0:00:42.3]} 19... f6
{[%clk 0:01:57.5]} 20. Bd2 {[%clk 0:00:33.3]} 20... Ra7 {[%clk 0:01:54.1]} 21.
Kh1 {[%clk 0:00:27]} 21... Rd7 {[%clk 0:01:48.9]} 22. f4 {[%clk 0:00:26.6]}
22... exf4 {[%clk 0:01:45.9]} 23. gxf4 {[%clk 0:00:26.9]} 23... Re7 {[%clk
0:01:46.2]} 24. Qf3 {[%clk 0:00:20.4]} 24... Rxe1 {[%clk 0:01:39.9]} 25. Rxe1
{[%clk 0:00:21.3]} 25... Re8 {[%clk 0:01:33.9]} 26. Rg1 {[%clk 0:00:19.5]} 26...
Nb4 {[%clk 0:01:18.3]} 27. Bxb4 {[%clk 0:00:14.5]} 27... axb4 {[%clk 0:01:13.5]}
28. Qxc6 {[%clk 0:00:14.4]} 28... Re2 {[%clk 0:01:11.5]} 29. Rg2 {[%clk
0:00:11]} 29... Re1+ {[%clk 0:01:09.8]} 30. Rg1 {[%clk 0:00:11.3]} 30... Rxg1+
{[%clk 0:01:10.1]} 31. Kxg1 {[%clk 0:00:11.2]} 31... Qd4+ {[%clk 0:01:10.8]} 32.
Kh1 {[%clk 0:00:10.1]} 32... Qxb2 {[%clk 0:01:09.7]} 33. Qe8+ {[%clk 0:00:09.3]}
33... Kh7 {[%clk 0:01:09.5]} 34. Qg6+ {[%clk 0:00:09.3]} 34... Kg8 {[%clk
0:01:09.9]} 35. Qe8+ {[%clk 0:00:09.3]} 35... Bf8 {[%clk 0:01:09.6]} 36. Qg6+
{[%clk 0:00:08.3]} 36... Bg7 {[%clk 0:01:09.9]} 37. Qe8+ {[%clk 0:00:08.2]}
1/2-1/2

[Event "*** Titled Tuesday Blitz"]
[Site "Chess.com"]
[Date "2020.05.19"]
[Round "6"]
[White "kleopl"]
[Black "Shushik"]
[Result "1-0"]
[WhiteElo "2371"]
[BlackElo "2102"]
[TimeControl "180+1"]
[EndTime "13:08:12 PDT"]
[Termination "kleopl won by resignation"]

1. c4 {[%clk 0:03:00.9]} 1... e6 {[%clk 0:02:59.7]} 2. Nc3 {[%clk 0:03:00]} 2...
d5 {[%clk 0:02:58.2]} 3. d4 {[%clk 0:02:58.2]} 3... Be7 {[%clk 0:02:57.5]} 4.
Nf3 {[%clk 0:02:57.2]} 4... Nf6 {[%clk 0:02:57.5]} 5. cxd5 {[%clk 0:02:56.9]}
5... exd5 {[%clk 0:02:57.4]} 6. Bg5 {[%clk 0:02:56.4]} 6... O-O {[%clk
0:02:57.2]} 7. e3 {[%clk 0:02:56.7]} 7... Nbd7 {[%clk 0:02:57.2]} 8. Bd3 {[%clk
0:02:56]} 8... c5 {[%clk 0:02:56.6]} 9. O-O {[%clk 0:02:54.4]} 9... Re8 {[%clk
0:02:53.8]} 10. Rc1 {[%clk 0:02:52.7]} 10... b6 {[%clk 0:02:45.9]} 11. dxc5
{[%clk 0:02:49.3]} 11... bxc5 {[%clk 0:02:42]} 12. Bb5 {[%clk 0:02:48.5]} 12...
Bb7 {[%clk 0:02:38.4]} 13. Rc2 {[%clk 0:02:39.9]} 13... a6 {[%clk 0:02:18.8]}
14. Ba4 {[%clk 0:02:35.2]} 14... Rf8 {[%clk 0:02:07.7]} 15. Rd2 {[%clk
0:02:27.2]} 15... Nb6 {[%clk 0:02:06.2]} 16. Bb3 {[%clk 0:02:23.2]} 16... c4
{[%clk 0:02:00.3]} 17. Bc2 {[%clk 0:02:20.3]} 17... Qc7 {[%clk 0:01:53.6]} 18.
Na4 {[%clk 0:02:10.1]} 18... Nxa4 {[%clk 0:01:45.9]} 19. Bxa4 {[%clk 0:02:11]}
19... Ne4 {[%clk 0:01:41.3]} 20. Bxe7 {[%clk 0:02:07.7]} 20... Qxe7 {[%clk
0:01:41.2]} 21. Rd4 {[%clk 0:02:04.5]} 21... Rfd8 {[%clk 0:01:33.8]} 22. Bc2
{[%clk 0:02:03]} 22... Nc5 {[%clk 0:01:27.2]} 23. Qe1 {[%clk 0:01:54.4]} 23...
Re8 {[%clk 0:01:04.2]} 24. Qc3 {[%clk 0:01:45.9]} 24... Rad8 {[%clk 0:00:58.6]}
25. Rfd1 {[%clk 0:01:44.8]} 25... Ne6 {[%clk 0:00:52.2]} 26. R4d2 {[%clk
0:01:42.2]} 26... Nc5 {[%clk 0:00:50.5]} 27. Nd4 {[%clk 0:01:34.4]} 27... Ne4
{[%clk 0:00:49.9]} 28. Bxe4 {[%clk 0:01:33.6]} 28... Qxe4 {[%clk 0:00:49.4]} 29.
Qb4 {[%clk 0:01:30.9]} 29... Ba8 {[%clk 0:00:45.6]} 30. b3 {[%clk 0:01:28]}
30... Rb8 {[%clk 0:00:40.1]} 31. Qa4 {[%clk 0:01:27.9]} 31... c3 {[%clk
0:00:36.2]} 32. Rc2 {[%clk 0:01:18]} 32... Rec8 {[%clk 0:00:35.7]} 33. Rdc1
{[%clk 0:01:10.4]} 33... Bb7 {[%clk 0:00:30.9]} 34. Qa3 {[%clk 0:01:06.2]} 34...
Qd3 {[%clk 0:00:27.1]} 35. Qa5 {[%clk 0:01:01.5]} 35... Rc7 {[%clk 0:00:20.4]}
36. Qxc7 {[%clk 0:00:59.3]} 1-0

[Event "*** Titled Tuesday Blitz"]
[Site "Chess.com"]
[Date "2020.05.19"]
[Round "6"]
[White "Mirzaad786"]
[Black "valeriocarnicelli"]
[Result "0-1"]
[WhiteElo "2273"]
[BlackElo "2552"]
[TimeControl "180+1"]
[EndTime "13:08:16 PDT"]
[Termination "valeriocarnicelli won by checkmate"]

1. d4 {[%clk 0:03:00.7]} 1... Nf6 {[%clk 0:02:59.3]} 2. Bf4 {[%clk 0:03:00.8]}
2... g6 {[%clk 0:02:59.3]} 3. c3 {[%clk 0:03:00.9]} 3... Bg7 {[%clk 0:02:59.5]}
4. e3 {[%clk 0:03:01.4]} 4... O-O {[%clk 0:02:59.7]} 5. Nf3 {[%clk 0:03:01.9]}
5... d6 {[%clk 0:03:00]} 6. Nbd2 {[%clk 0:03:02.1]} 6... b6 {[%clk 0:03:00.3]}
7. Bc4 {[%clk 0:03:02.4]} 7... Bb7 {[%clk 0:03:00.6]} 8. O-O {[%clk 0:03:02.8]}
8... Nbd7 {[%clk 0:02:59.2]} 9. h3 {[%clk 0:03:03.2]} 9... Ne4 {[%clk
0:02:59.1]} 10. Nxe4 {[%clk 0:03:03.2]} 10... Bxe4 {[%clk 0:02:57.6]} 11. Ng5
{[%clk 0:02:55.9]} 11... Bb7 {[%clk 0:02:56.5]} 12. Qb3 {[%clk 0:02:53.3]} 12...
e6 {[%clk 0:02:41.8]} 13. Bxe6 {[%clk 0:02:44.4]} 13... fxe6 {[%clk 0:02:41.6]}
14. Nxe6 {[%clk 0:02:44.4]} 14... Qe7 {[%clk 0:02:28]} 15. Nxc7+ {[%clk
0:02:19.9]} 15... Kh8 {[%clk 0:02:27.6]} 16. Nxa8 {[%clk 0:02:18]} 16... Bxa8
{[%clk 0:02:27.6]} 17. Qa3 {[%clk 0:02:13.7]} 17... g5 {[%clk 0:01:27.2]} 18.
Bxd6 {[%clk 0:02:06.7]} 18... Qe4 {[%clk 0:01:26.5]} 19. f3 {[%clk 0:01:56.7]}
19... Qxe3+ {[%clk 0:01:26.1]} 20. Kh2 {[%clk 0:01:52.2]} 20... Rxf3 {[%clk
0:00:52.6]} 21. gxf3 {[%clk 0:01:41.9]} 21... Bxf3 {[%clk 0:00:52.1]} 22. Bg3
{[%clk 0:01:01.4]} 22... Bf8 {[%clk 0:00:51.8]} 23. Qa4 {[%clk 0:00:44.8]} 23...
Bd6 {[%clk 0:00:49.3]} 24. Rxf3 {[%clk 0:00:18.3]} 24... Qe2+ {[%clk 0:00:45.9]}
25. Rf2 {[%clk 0:00:17.6]} 25... Qxf2+ {[%clk 0:00:45.9]} 26. Kh1 {[%clk
0:00:17]} 26... Bxg3 {[%clk 0:00:43.4]} 27. Qc6 {[%clk 0:00:14.6]} 27... Qh2#
{[%clk 0:00:42.9]} 0-1

[Event "*** Titled Tuesday Blitz"]
[Site "Chess.com"]
[Date "2020.05.19"]
[Round "6"]
[White "fodorpoti"]
[Black "SerGo055"]
[Result "1-0"]
[WhiteElo "2763"]
[BlackElo "2577"]
[TimeControl "180+1"]
[EndTime "13:08:17 PDT"]
[Termination "fodorpoti won by checkmate"]

1. d4 {[%clk 0:03:00.9]} 1... d5 {[%clk 0:02:58]} 2. c4 {[%clk 0:02:59.7]} 2...
c6 {[%clk 0:02:56.3]} 3. Nc3 {[%clk 0:02:59.4]} 3... Nf6 {[%clk 0:02:56.4]} 4.
cxd5 {[%clk 0:03:00]} 4... cxd5 {[%clk 0:02:55.8]} 5. Bf4 {[%clk 0:03:00.6]}
5... e6 {[%clk 0:02:56.1]} 6. e3 {[%clk 0:03:00.4]} 6... Bd6 {[%clk 0:02:56.5]}
7. Bxd6 {[%clk 0:02:58]} 7... Qxd6 {[%clk 0:02:57.4]} 8. f4 {[%clk 0:02:58.6]}
8... O-O {[%clk 0:02:56.3]} 9. Nf3 {[%clk 0:02:58.5]} 9... b6 {[%clk 0:02:56.8]}
10. Ne5 {[%clk 0:02:55.1]} 10... Ne4 {[%clk 0:02:51]} 11. Bd3 {[%clk 0:02:49.3]}
11... Nxc3 {[%clk 0:02:47.9]} 12. bxc3 {[%clk 0:02:49.4]} 12... Ba6 {[%clk
0:02:48.2]} 13. O-O {[%clk 0:02:48.2]} 13... Bxd3 {[%clk 0:02:47.2]} 14. Qxd3
{[%clk 0:02:48.1]} 14... Nd7 {[%clk 0:02:44.8]} 15. c4 {[%clk 0:02:47.2]} 15...
dxc4 {[%clk 0:02:42.7]} 16. Nxc4 {[%clk 0:02:46.6]} 16... Qe7 {[%clk 0:02:05.4]}
17. e4 {[%clk 0:02:45.9]} 17... Rfd8 {[%clk 0:02:03.4]} 18. Rac1 {[%clk
0:02:43.3]} 18... Rac8 {[%clk 0:02:03]} 19. Rfd1 {[%clk 0:02:42.4]} 19... Qb4
{[%clk 0:01:49.7]} 20. Qb3 {[%clk 0:02:38.3]} 20... Qe7 {[%clk 0:01:31.4]} 21.
g3 {[%clk 0:02:32.2]} 21... h6 {[%clk 0:01:28.8]} 22. Kg2 {[%clk 0:02:31.9]}
22... Nf6 {[%clk 0:01:27.6]} 23. e5 {[%clk 0:02:21.2]} 23... Nd5 {[%clk
0:01:21.7]} 24. Nd6 {[%clk 0:02:20.7]} 24... Rxc1 {[%clk 0:01:13.3]} 25. Rxc1
{[%clk 0:02:20.6]} 25... g5 {[%clk 0:01:13.5]} 26. f5 {[%clk 0:02:19.3]} 26...
Qd7 {[%clk 0:00:48.9]} 27. Qf3 {[%clk 0:02:07]} 27... Rf8 {[%clk 0:00:28.3]} 28.
h4 {[%clk 0:01:56.1]} 28... f6 {[%clk 0:00:21.4]} 29. hxg5 {[%clk 0:01:52.1]}
29... fxg5 {[%clk 0:00:20.4]} 30. Rf1 {[%clk 0:01:38.6]} 30... Qc6 {[%clk
0:00:16.9]} 31. Kh2 {[%clk 0:01:26]} 31... exf5 {[%clk 0:00:07.3]} 32. Qh5
{[%clk 0:01:25.6]} 32... Ne7 {[%clk 0:00:03.6]} 33. Qxh6 {[%clk 0:01:22.3]}
33... Qc2+ {[%clk 0:00:03]} 34. Kg1 {[%clk 0:01:15.9]} 34... Qd2 {[%clk
0:00:02.7]} 35. Qe6+ {[%clk 0:01:15.9]} 35... Kg7 {[%clk 0:00:01.6]} 36. Qxe7+
{[%clk 0:01:15.4]} 36... Kg8 {[%clk 0:00:02.5]} 37. Qe6+ {[%clk 0:01:14]} 37...
Kg7 {[%clk 0:00:02.7]} 38. Nxf5+ {[%clk 0:01:14]} 38... Kh8 {[%clk 0:00:02.6]}
39. Qh6+ {[%clk 0:01:13.6]} 39... Kg8 {[%clk 0:00:03.1]} 40. Qg7# {[%clk
0:01:14.5]} 1-0

[Event "*** Titled Tuesday Blitz"]
[Site "Chess.com"]
[Date "2020.05.19"]
[Round "6"]
[White "Escanor89"]
[Black "Tacticusbd"]
[Result "1-0"]
[WhiteElo "2576"]
[BlackElo "2403"]
[TimeControl "180+1"]
[EndTime "13:08:19 PDT"]
[Termination "Escanor89 won on time"]

1. c4 {[%clk 0:03:00.9]} 1... e5 {[%clk 0:02:58.6]} 2. Nc3 {[%clk 0:03:00.8]}
2... Nf6 {[%clk 0:02:58.9]} 3. Nf3 {[%clk 0:03:00.7]} 3... Nc6 {[%clk
0:02:57.1]} 4. e3 {[%clk 0:03:00.8]} 4... d5 {[%clk 0:02:50.6]} 5. cxd5 {[%clk
0:03:00.5]} 5... Nxd5 {[%clk 0:02:48]} 6. Bb5 {[%clk 0:03:00.7]} 6... Nxc3
{[%clk 0:02:29.3]} 7. bxc3 {[%clk 0:03:00.6]} 7... Bd6 {[%clk 0:02:28.4]} 8. d4
{[%clk 0:03:00.3]} 8... exd4 {[%clk 0:02:27.7]} 9. cxd4 {[%clk 0:02:59.6]} 9...
O-O {[%clk 0:02:25.9]} 10. O-O {[%clk 0:02:59.4]} 10... Bg4 {[%clk 0:02:24]} 11.
Be2 {[%clk 0:02:52.9]} 11... Qf6 {[%clk 0:02:21.5]} 12. Bb2 {[%clk 0:02:49.6]}
12... Rfe8 {[%clk 0:02:19.8]} 13. Rc1 {[%clk 0:02:41.8]} 13... a5 {[%clk
0:02:00.4]} 14. Re1 {[%clk 0:02:33.3]} 14... Nb4 {[%clk 0:01:47.7]} 15. a3
{[%clk 0:02:31.4]} 15... Nd5 {[%clk 0:01:46.2]} 16. Nd2 {[%clk 0:02:10.9]} 16...
Bxe2 {[%clk 0:01:25.3]} 17. Rxe2 {[%clk 0:02:10.5]} 17... Qh6 {[%clk 0:01:15.4]}
18. Nf1 {[%clk 0:02:06.3]} 18... c6 {[%clk 0:01:11.9]} 19. e4 {[%clk 0:01:48]}
19... Nf4 {[%clk 0:01:08]} 20. Re3 {[%clk 0:01:47.8]} 20... Bc7 {[%clk
0:00:42.6]} 21. Qf3 {[%clk 0:01:42]} 21... Rad8 {[%clk 0:00:34]} 22. Rb3 {[%clk
0:01:31.1]} 22... Rb8 {[%clk 0:00:20.5]} 23. Rd1 {[%clk 0:01:26.2]} 23... Qg5
{[%clk 0:00:18.9]} 24. Bc1 {[%clk 0:01:19.8]} 24... Qh4 {[%clk 0:00:10.5]} 25.
Ng3 {[%clk 0:01:13]} 25... g6 {[%clk 0:00:08.1]} 26. Be3 {[%clk 0:00:55.7]}
26... h5 {[%clk 0:00:07.5]} 27. Rdb1 {[%clk 0:00:52.5]} 27... b6 {[%clk
0:00:05.2]} 28. Rc1 {[%clk 0:00:50.1]} 1-0